bitfinex/quotes_SOLUSD_20250930
["timestamp","ask_amount","ask_price","bid_price","bid_amount"]
[1759246094298,17.020035,205.64,205.58,0.66]
[1759246094482,17.020035,205.64,205.59,40.26]
[1759246094676,17.020035,205.64,205.59,0.66]
[1759246094881,21.52362232,205.64,205.59,40.92]
[1759246095087,0.2,205.65,205.63,4.50358732]
[1759246095271,0.68,205.76,205.64,4.50358732]
[1759246095592,4.50358732,205.75,205.65,0.66]
[1759246095806,5.18358732,205.74,205.66,40.24]
[1759246096104,8.33692113,205.8,205.67,40.24]
[1759246096105,4.50358732,205.7,205.67,40.24]
[1759246096275,5.06100149,205.72,205.67,40.24]
[1759246096475,4.50358732,205.7,205.62,0.66]
[1759246096799,4.50358732,205.7,205.63,40.2]
[1759246097487,4.86168506,205.69,205.62,0.66]
[1759246097693,4.86168506,205.69,205.63,40.16]
[1759246098210,4.86144622,205.71,205.64,44.64358732]
[1759246098511,4.86144622,205.71,205.65,0.69]
[1759246098887,4.86144622,205.71,205.7,4.50358732]
[1759246099485,5.06099988,205.72,205.7,5.19358732]
[1759246099681,5.06099988,205.72,205.71,5.19358732]
[1759246099682,0.2,205.72,205.71,5.19358732]
[1759246099975,0.2,205.72,205.71,18.78918133]
[1759246100175,4.85908649,205.8,205.72,13.59559401]
[1759246100374,17.00680271,205.8,205.78,4.50358732]
[1759246100593,17.00680271,205.8,205.76,40.06]
[1759246100594,4.85908649,205.8,205.76,40.06]
[1759246100787,4.85908649,205.8,205.73,0.69]
[1759246100984,17.00680271,205.8,205.78,4.50358732]
[1759246101496,17.00680271,205.8,205.79,4.50358732]
[1759246101699,17.00349785,205.84,205.79,4.50358732]
[1759246101878,0.66,205.83,205.79,4.50358732]
[1759246102073,0.66,205.82,205.78,4.50358732]
[1759246102288,0.66,205.81,205.72,0.69]
[1759246102482,41.29420908,205.84,205.72,0.69]
[1759246102483,41.29420908,205.84,205.77,4.50358732]
[1759246102690,4.50358732,205.83,205.77,4.50358732]
[1759246103000,4.50358732,205.83,205.74,0.69]
[1759246103316,4.50358732,205.83,205.77,4.50358732]
[1759246103520,17.00349785,205.84,205.79,4.50358732]
[1759246103732,0.2,205.86,205.8,40.65]
[1759246103733,4.85790624,205.85,205.8,40.65]
[1759246104031,4.85790624,205.85,205.7,35.59978758]
[1759246104032,4.85790624,205.85,205.84,4.50358732]
[1759246104196,4.85790624,205.85,205.84,44.44358732]
[1759246104596,0.2,205.86,205.84,44.44358732]
[1759246104828,0.2,205.86,205.85,5.21358732]
[1759246105002,0.2,205.86,205.85,45.11358732]
[1759246105723,0.2,205.86,205.85,45.09358732]
[1759246106227,0.2,205.86,205.85,58.68918133]
[1759246106429,5.05767026,205.86,205.85,45.05358732]
[1759246106721,5.05767026,205.86,205.85,5.21358732]
[1759246106928,5.05767026,205.86,205.85,45.05358732]
[1759246107130,5.05767026,205.86,205.82,0.71]
[1759246107311,5.05767026,205.86,205.85,4.50358732]
[1759246107629,5.05767026,205.86,205.83,40.51]
[1759246107809,5.05767026,205.86,205.84,0.71]
[1759246108417,5.05767026,205.86,205.85,39.76]
[1759246109527,5.05767026,205.86,205.84,0.71]
[1759246109725,5.05767026,205.86,205.85,39.68]
[1759246109920,5.05767026,205.86,205.76,4.85983437]
[1759246109921,17.92184591,205.86,205.71,12.15275721]
[1759246110105,17.20184591,205.86,205.78,13.59559401]
[1759246110311,17.20184591,205.86,205.79,40.37]
[1759246111050,4.49102943,205.83,205.72,0.71]
[1759246111218,0.72,205.83,205.73,39.64]
[1759246111416,4.49102943,205.82,205.73,39.64]
[1759246111943,17.00680271,205.8,205.73,39.64]
[1759246112437,17.00680271,205.8,205.74,39.6]
[1759246112615,22.21783214,205.8,205.75,39.6]
[1759246112814,0.72,205.79,205.69,14.30559401]
[1759246113437,0.72,205.79,205.7,39.58]
[1759246113608,17.00680271,205.8,205.71,0.71]
[1759246113814,17.0092822,205.77,205.68,40.25]
[1759246114338,17.0092822,205.77,205.69,39.66]
[1759246114637,5.21102943,205.76,205.67,14.64925656]
[1759246114825,17.0092822,205.77,205.7,39.64]
[1759246115140,17.0092822,205.77,205.7,40.35]
[1759246115436,17.0092822,205.77,205.7,0.71]
[1759246115614,17.0092822,205.77,205.67,0.71]
[1759246115921,21.50031163,205.77,205.67,0.71]
[1759246116121,20.8,205.84,205.68,39.62]
[1759246116438,0.72,205.83,205.69,53.92559401]
[1759246116641,0.72,205.83,205.7,0.71]
[1759246116941,4.49102943,205.81,205.71,39.62]
[1759246117140,0.72,205.82,205.72,0.71]
[1759246117642,0.72,205.82,205.73,13.59559401]
[1759246117835,17.00597637,205.81,205.74,0.71]
[1759246118139,17.00597637,205.81,205.75,39.6]
[1759246118560,17.00597637,205.81,205.74,0.71]
[1759246118932,17.00597637,205.81,205.75,39.58]
[1759246119471,17.00597637,205.81,205.76,39.58]
[1759246119472,4.85885039,205.81,205.76,39.58]
[1759246119754,20.8,205.85,205.76,39.58]
[1759246120055,4.49102943,205.82,205.74,0.71]
[1759246120358,4.49102943,205.81,205.75,39.54]
[1759246120854,5.21102943,205.83,205.75,39.54]
[1759246121655,0.72,205.83,205.75,39.54]
[1759246121858,17.00597637,205.81,205.75,39.54]
[1759246122231,21.4970058,205.81,205.74,0.71]
[1759246122437,17.00597637,205.81,205.75,39.46]
[1759246122954,17.00597637,205.81,205.76,0.71]
[1759246123151,4.85885039,205.81,205.77,0.71]
[1759246123347,4.85885039,205.81,205.78,0.71]
[1759246123549,17.00597637,205.81,205.72,13.59559401]
[1759246123858,0.2,205.86,205.75,13.59559401]
[1759246124041,5.05768065,205.86,205.75,13.59559401]
[1759246124245,5.05768065,205.86,205.77,13.59559401]
[1759246124456,17.2018563,205.86,205.78,0.71]
[1759246124654,17.2018563,205.86,205.79,39.46]
[1759246125732,21.69288573,205.86,205.78,0.71]
[1759246125957,21.69288573,205.86,205.78,40.09]
[1759246126162,21.69288573,205.86,205.78,0.71]
[1759246126466,21.69288573,205.86,205.79,39.38]
[1759246126946,21.69288573,205.86,205.8,0.71]
[1759246127134,17.2018563,205.86,205.8,0.71]
[1759246127872,5.05768065,205.86,205.8,0.71]
[1759246128037,5.05768065,205.86,205.8,5.56904678]
[1759246128237,5.05768065,205.86,205.81,0.71]
[1759246128538,5.05768065,205.86,205.82,0.71]
[1759246128762,5.05768065,205.86,205.83,0.71]
[1759246128941,5.05768065,205.86,205.84,0.71]
[1759246129939,5.05768065,205.86,205.81,0.71]
[1759246130149,5.05768065,205.86,205.82,39.2]
[1759246130545,21.69288573,205.86,205.82,39.2]
[1759246130761,17.2018563,205.86,205.82,39.2]
[1759246130952,17.2018563,205.86,205.8,0.71]
[1759246131268,22.41288573,205.86,205.81,39.2]
[1759246132162,17.9218563,205.86,205.81,39.2]
[1759246132366,17.2018563,205.86,205.81,39.2]
[1759246132565,17.2018563,205.86,205.81,39.91]
[1759246136894,0.2,205.86,205.82,0.69]
[1759246137304,0.2,205.86,205.82,5.54854193]
[1759246137473,0.2,205.86,205.83,0.69]
[1759246137875,5.05767375,205.86,205.84,39.61]
[1759246139287,17.2018494,205.86,205.84,38.9]
[1759246139464,5.05767375,205.86,205.84,38.9]
[1759246140409,0.2,205.86,205.85,0.69]
[1759246140771,0.2,205.86,205.84,38.9]
[1759246140994,5.05772078,205.86,205.83,0.69]
[1759246141229,5.05772078,205.86,205.83,38.76]
[1759246141230,17.20189643,205.86,205.83,38.76]
[1759246141594,17.20189643,205.86,205.83,39.45]
[1759246142116,17.20189643,205.86,205.83,38.76]
[1759246142323,5.21102943,205.85,205.78,0.69]
[1759246142521,4.49102943,205.84,205.8,38.74]
[1759246142827,5.21102943,205.85,205.8,38.74]
[1759246143019,4.49102943,205.85,205.8,39.43]
[1759246143402,17.00349785,205.84,205.8,38.74]
[1759246143607,4.49102943,205.82,205.79,38.68]
[1759246143910,4.49102943,205.82,205.77,0.69]
[1759246144117,5.21102943,205.83,205.78,38.68]
[1759246144643,4.49102943,205.83,205.78,39.37]
[1759246145010,17.00349785,205.84,205.78,39.37]
[1759246145217,4.49102943,205.83,205.78,39.37]
[1759246145415,17.00349785,205.84,205.79,0.69]
[1759246145724,17.00349785,205.84,205.8,0.69]
[1759246145930,17.00349785,205.84,205.81,0.69]
[1759246146109,17.00349785,205.84,205.78,38.68]
[1759246146110,4.85814224,205.84,205.82,0.69]
[1759246146441,4.85814224,205.84,205.79,0.69]
[1759246146739,4.85814224,205.84,205.8,0.69]
[1759246147041,4.85814224,205.84,205.81,0.69]
[1759246147241,0.2,205.86,205.83,13.59559401]
[1759246147405,0.2,205.86,205.84,43.43814224]
[1759246147703,0.2,205.86,205.85,13.59559401]
[1759246147903,0.2,205.86,205.85,14.28559401]
[1759246148853,0.2,205.86,205.85,52.82559401]
[1759246150435,0.2,205.86,205.85,14.28559401]
[1759246150633,0.2,205.86,205.85,52.76559401]
[1759246151034,0.2,205.86,205.85,38.48]
[1759246151662,0.2,205.86,205.85,39.17]
[1759246151827,0.2,205.86,205.85,52.76559401]
[1759246153139,0.2,205.86,205.85,38.44]
[1759246153656,0.2,205.86,205.85,57.58350025]
[1759246154428,0.2,205.86,205.85,19.14350025]
[1759246154632,0.2,205.86,205.85,57.54350025]
[1759246155843,5.77767026,205.86,205.76,7.35593724]
[1759246156042,24.55778315,205.86,205.79,13.59559401]
[1759246156347,24.55778315,205.86,205.8,38.36]
[1759246156536,17.92184591,205.86,205.8,38.36]
[1759246156848,24.55778315,205.86,205.8,38.36]
[1759246157537,24.55778315,205.86,205.81,38.32]
[1759246157538,6.63593724,205.85,205.81,38.32]
[1759246157749,0.7,205.84,205.81,38.32]
[1759246158280,23.83778315,205.86,205.81,38.32]
[1759246158434,17.90184591,205.86,205.81,38.32]
[1759246158634,0.7,205.85,205.78,0.69]
[1759246158867,0.2,205.86,205.85,13.59559401]
[1759246159075,0.2,205.86,205.85,57.45350025]
[1759246159365,0.2,205.86,205.85,57.59350025]
[1759246159549,0.2,205.86,205.85,14.31559401]
[1759246159751,0.2,205.86,205.85,52.71559401]
[1759246161559,5.05773275,205.86,205.82,13.59559401]
[1759246161757,5.05773275,205.86,205.77,4.85956207]
[1759246161960,0.7,205.85,205.78,38.36]
[1759246162262,0.7,205.85,205.79,38.36]
[1759246162441,0.7,205.85,205.8,38.36]
[1759246162645,0.7,205.84,205.81,38.36]
[1759246162844,4.85861432,205.82,205.81,38.36]
[1759246163163,4.85837002,205.84,205.81,38.36]
[1759246163552,5.55837002,205.84,205.81,38.36]
[1759246163937,5.55837002,205.84,205.76,5.56001888]
[1759246164141,5.55837002,205.84,205.77,38.28]
[1759246164762,5.55837002,205.84,205.76,14.29559401]
[1759246164964,5.55837002,205.84,205.78,38.28]
[1759246165464,5.55837002,205.84,205.76,14.29559401]
[1759246165465,7.33593724,205.83,205.76,38.24]
[1759246165639,0.7,205.83,205.76,38.24]
[1759246165840,37.80372563,205.84,205.76,38.94]
[1759246166246,38.50372563,205.84,205.76,38.94]
[1759246167061,41.716444,205.84,205.76,38.94]
[1759246167251,38.50372563,205.84,205.76,38.94]
[1759246168072,17.70372563,205.84,205.76,38.94]
[1759246170581,5.55837002,205.84,205.76,38.94]
[1759246171367,5.05779788,205.86,205.77,14.29559401]
[1759246171675,0.2,205.86,205.79,13.59559401]
[1759246171977,0.2,205.86,205.8,38.82]
[1759246172580,0.2,205.86,205.82,18.45420833]
[1759246172958,5.05767376,205.86,205.75,32.95049166]
[1759246173163,5.05767376,205.86,205.8,0.7]
[1759246173362,5.75767376,205.86,205.76,4.8600311]
[1759246173575,17.90184941,205.86,205.77,51.69559401]
[1759246173778,17.90184941,205.86,205.78,0.7]
[1759246175580,17.90184941,205.86,205.79,38.02]
[1759246175787,17.90184941,205.86,205.8,38.02]
[1759246176075,17.90184941,205.86,205.78,0.7]
[1759246176280,17.90184941,205.86,205.79,38.02]
[1759246177084,7.33593724,205.85,205.8,38.0]
[1759246177459,0.7,205.84,205.8,38.0]
[1759246177984,17.00432395,205.83,205.79,37.94]
[1759246178362,17.00432395,205.83,205.79,38.64]
[1759246179068,4.85837827,205.83,205.79,38.64]
[1759246179275,4.85837827,205.83,205.8,0.7]
[1759246179582,13.25801828,205.85,205.81,0.7]
[1759246179781,8.4,205.85,205.82,0.7]
[1759246179985,8.4,205.85,205.83,0.7]
[1759246180373,0.2,205.86,205.84,38.56]
[1759246180685,0.2,205.86,205.85,0.7]
[1759246181273,0.2,205.86,205.85,14.29559401]
[1759246181863,0.2,205.86,205.85,19.15350025]
[1759246182390,0.2,205.86,205.85,56.97350025]
[1759246183384,0.2,205.99,205.89,13.59559401]
[1759246183586,0.2,205.99,205.88,20.8]
[1759246183587,0.2,205.99,205.91,13.59559401]
[1759246183997,0.2,205.99,205.93,18.45161304]
[1759246184164,0.2,205.99,205.95,13.59559401]
[1759246184569,0.2,205.99,205.96,0.7]
[1759246184771,0.2,205.99,205.97,0.7]
[1759246184990,0.2,205.99,205.98,37.8]
[1759246185778,0.2,205.99,205.98,52.09559401]
[1759246186375,0.2,205.99,205.98,66.91242621]
[1759246186795,0.2,205.99,205.94,0.7]
[1759246187093,0.2,205.99,205.95,52.01559401]
[1759246187393,0.2,205.99,205.96,37.72]
[1759246187599,0.2,205.99,205.96,38.42]
[1759246187999,0.2,205.99,205.96,0.7]
[1759246188294,5.05467218,205.99,205.97,37.68]
[1759246188490,0.2,205.99,205.98,13.59559401]
[1759246188797,0.2,205.99,205.98,14.29559401]
[1759246189598,0.2,205.99,205.98,0.7]
[1759246189796,0.2,205.99,205.98,13.59559401]
[1759246190003,0.2,205.99,205.98,51.27559401]
[1759246190193,0.2,205.99,205.98,51.25559401]
[1759246190499,5.05460459,205.99,205.98,37.66]
[1759246190695,0.2,205.99,205.98,37.66]
[1759246191270,5.05460459,205.99,205.98,37.66]
[1759246191574,5.05460459,205.99,205.92,13.59559401]
[1759246191575,5.75460459,205.99,205.92,13.59559401]
[1759246191775,5.75460459,205.99,205.93,37.66]
[1759246192107,0.7,205.98,205.94,37.64]
[1759246192287,17.19111607,205.99,205.95,37.64]
[1759246192477,0.7,205.97,205.95,37.64]
[1759246192679,0.7,205.97,205.87,0.7]
[1759246192680,0.7,205.96,205.87,0.7]
[1759246192899,7.33593724,205.96,205.85,0.66]
[1759246193105,6.63593724,205.95,205.86,37.64]
[1759246193399,6.63593724,205.95,205.83,0.66]
[1759246193400,0.72,205.94,205.87,37.64]
[1759246193601,0.72,205.94,205.88,37.64]
[1759246193980,16.99606661,205.93,205.88,37.64]
[1759246194203,17.71606661,205.93,205.88,37.64]
[1759246194391,4.85554746,205.95,205.89,0.66]
[1759246195083,16.99441611,205.95,205.89,0.66]
[1759246195283,17.71441611,205.95,205.89,13.59559401]
[1759246196185,5.57554746,205.95,205.89,13.59559401]
[1759246196510,4.85554746,205.95,205.89,18.45241068]
[1759246196690,4.85554746,205.95,205.9,0.66]
[1759246196886,0.2,205.99,205.92,13.59559401]
[1759246197091,0.2,205.99,205.94,13.59559401]
[1759246197294,5.05460548,205.99,205.95,0.66]
[1759246197683,5.05460548,205.99,205.94,13.59559401]
[1759246197684,0.2,205.99,205.94,13.59559401]
[1759246197910,0.2,205.99,205.96,0.66]
[1759246198095,0.2,205.99,205.97,38.24]
[1759246198722,0.2,205.99,205.97,37.58]
[1759246198905,7.35593724,205.98,205.86,0.66]
[1759246199212,6.63593724,205.96,205.86,38.24]
[1759246199415,29.32778556,205.99,205.86,38.24]
[1759246199416,6.63593724,205.93,205.86,38.24]
[1759246199589,0.72,205.95,205.86,38.24]
[1759246199787,6.63593724,205.94,205.86,0.66]
[1759246199994,0.72,205.95,205.87,37.76]
[1759246200301,41.46429704,205.99,205.77,53.52622829]
[1759246200302,6.63593724,205.92,205.77,53.52622829]
[1759246200505,6.63593724,205.92,205.84,0.66]
[1759246200693,6.63593724,205.93,205.85,37.72]
[1759246200892,6.63593724,205.92,205.85,37.72]
[1759246201301,0.72,205.92,205.84,0.66]
[1759246201506,6.63593724,205.93,205.85,37.7]
[1759246201729,4.85578323,205.94,205.86,0.66]
[1759246201907,4.85578323,205.94,205.87,13.59559401]
[1759246202103,4.85578323,205.94,205.88,0.66]
[1759246202297,24.35045098,205.95,205.88,0.66]
[1759246202603,6.63593724,205.92,205.88,37.68]
[1759246202786,7.35593724,205.91,205.88,37.68]
[1759246202988,6.63593724,205.92,205.88,37.68]
[1759246203203,6.63593724,205.93,205.88,37.68]
[1759246203406,0.72,205.92,205.88,37.68]
[1759246203611,6.63593724,205.93,205.88,37.68]
[1759246203810,7.35593724,205.93,205.88,37.68]
[1759246203988,7.35593724,205.92,205.88,37.68]
[1759246204310,8.4,205.94,205.88,37.68]
[1759246204311,11.4926638,205.9,205.88,37.68]
[1759246204618,20.8,205.97,205.89,0.66]
[1759246204786,0.2,205.99,205.9,13.59559401]
[1759246204986,0.2,205.99,205.92,13.59559401]
[1759246205205,0.2,205.99,205.93,37.66]
[1759246205382,0.2,205.99,205.94,13.59559401]
[1759246205582,5.0546313,205.99,205.94,14.25559401]
[1759246205797,0.72,205.98,205.89,0.66]
[1759246206011,0.72,205.98,205.9,51.29559401]
[1759246206012,6.63593724,205.97,205.9,51.29559401]
[1759246206517,4.85525374,205.97,205.92,13.59559401]
[1759246206718,0.2,205.99,205.93,0.66]
[1759246206929,0.2,205.99,205.94,13.59559401]
[1759246207096,0.2,205.99,205.95,38.36]
[1759246207293,0.2,205.99,205.96,13.59559401]
[1759246207507,0.2,205.99,205.96,14.25559401]
[1759246207815,0.2,205.99,205.95,37.7]
[1759246207816,0.2,205.99,205.98,13.59559401]
[1759246208206,0.2,205.99,205.98,14.25559401]
[1759246208613,0.2,205.99,205.94,4.85557118]
[1759246208915,0.2,205.99,205.89,20.8]
[1759246208916,5.05465081,205.99,205.89,20.8]
[1759246209119,11.69058805,205.99,205.93,13.59559401]
[1759246209321,6.63593724,205.98,205.93,13.59559401]
[1759246209729,6.63593724,205.98,205.93,0.66]
[1759246210036,11.69058805,205.99,205.93,0.66]
[1759246210335,5.05465081,205.99,205.93,0.66]
[1759246210728,4.48764922,205.98,205.93,0.66]
[1759246210908,4.48764922,205.98,205.89,20.8]
[1759246210909,4.48764922,205.96,205.89,0.66]
[1759246211110,4.48764922,205.92,205.86,0.66]
[1759246211326,20.8,205.96,205.83,0.66]
[1759246211327,4.48764922,205.91,205.83,0.66]
[1759246211505,4.48764922,205.9,205.84,37.62]
[1759246211709,4.48764922,205.9,205.85,13.59559401]
[1759246212012,0.2,205.99,205.87,13.59559401]
[1759246212220,0.2,205.99,205.93,13.59559401]
[1759246212407,0.2,205.99,205.95,13.59559401]
[1759246212910,0.2,205.99,205.94,37.64]
[1759246212911,0.2,205.99,205.97,13.59559401]
[1759246213110,0.2,206.04,206.0,13.59559401]
[1759246213342,0.2,206.04,205.94,37.64]
[1759246213343,0.2,206.04,206.02,13.59559401]
[1759246213634,0.2,206.04,206.01,38.34]
[1759246213635,0.2,206.04,206.03,51.27559401]
[1759246214334,0.2,206.04,206.03,56.78925609]
[1759246218344,16.81387853,206.17,206.03,56.78925609]
[1759246218345,0.2,206.17,206.07,13.59559401]
[1759246218516,0.2,206.17,206.12,34.39559401]
[1759246218850,0.2,206.17,206.14,13.59559401]
[1759246219338,0.2,206.17,206.16,13.59559401]
[1759246219713,0.2,206.17,206.16,0.66]
[1759246219941,0.2,206.17,206.16,28.61207902]
[1759246220118,0.2,206.17,206.16,87.05207902]
[1759246220321,0.2,206.17,206.16,91.90268049]
[1759246220520,0.2,206.17,206.16,71.10268049]
[1759246221622,0.2,206.17,206.16,33.46268049]
[1759246221940,0.2,206.17,206.16,71.08268049]
[1759246222243,0.2,206.17,206.16,33.46268049]
[1759246222443,0.2,206.17,206.16,71.08268049]
[1759246223656,0.2,206.17,206.16,48.75207902]
[1759246223853,0.2,206.17,206.16,65.51207902]
[1759246225631,0.2,206.17,206.16,13.59559401]
[1759246225832,0.2,206.17,206.16,51.15559401]
[1759246226539,0.2,206.17,206.16,56.00619548]
[1759246226764,0.2,206.17,206.16,51.15559401]
[1759246227766,0.2,206.17,206.16,13.59559401]
[1759246227968,0.2,206.17,206.16,51.13559401]
[1759246229363,0.4,206.19,206.16,51.13559401]
[1759246229568,639.55633888,206.2,206.17,13.59559401]
[1759246229769,639.55633888,206.2,206.19,13.59559401]
[1759246229946,639.55633888,206.2,206.19,14.30559401]
[1759246230868,639.55633888,206.2,206.19,19.15548973]
[1759246231585,639.55633888,206.2,206.19,18.44548973]
[1759246232567,639.05633888,206.2,206.19,19.15548973]
[1759246233499,639.05633888,206.2,206.19,56.69548973]
[1759246233988,639.05633888,206.2,206.19,13.59559401]
[1759246234490,639.05633888,206.2,206.19,55.98548973]
[1759246234668,639.05633888,206.2,206.19,56.69548973]
[1759246234986,639.05633888,206.2,206.19,51.84559401]
[1759246235163,639.05633888,206.2,206.19,56.69548973]
[1759246235494,639.05633888,206.2,206.19,51.13559401]
[1759246236088,639.05633888,206.2,206.19,13.59559401]
[1759246236289,644.6060218,206.2,206.19,51.13559401]
[1759246236497,639.75633888,206.2,206.19,51.13559401]
[1759246237270,639.75633888,206.2,206.19,37.54]
[1759246237892,639.05633888,206.2,206.19,37.54]
[1759246238399,644.6059994,206.2,206.19,37.54]
[1759246238595,639.75633888,206.2,206.19,37.54]
[1759246238803,639.05633888,206.2,206.19,37.54]
[1759246239972,639.05633888,206.2,206.19,51.13559401]
[1759246240291,639.05633888,206.2,206.19,56.69548973]
[1759246243591,639.05633888,206.2,206.19,77.49548973]
[1759246243790,507.54632383,206.2,206.19,77.49548973]
[1759246244089,449.9678526,206.2,206.19,77.49548973]
[1759246244400,372.89667961,206.2,206.19,56.69548973]
[1759246244590,312.06340489,206.2,206.19,56.69548973]
[1759246245399,270.29814827,206.2,206.19,19.15548973]
[1759246245599,240.5400961,206.2,206.19,56.67548973]
[1759246245800,148.2403529,206.2,206.19,56.67548973]
[1759246245999,110.12266979,206.2,206.19,56.67548973]
[1759246246195,45.51765331,206.2,206.19,56.67548973]
[1759246246395,1e-08,206.23,206.22,20.8]
[1759246246616,1e-08,206.23,206.22,71.91559401]
[1759246246820,1e-08,206.23,206.22,72.62559401]
[1759246247889,1e-08,206.23,206.22,77.47478419]
[1759246248404,1e-08,206.23,206.22,77.9597032]
[1759246248587,1e-08,206.23,206.22,77.47478419]
[1759246248903,0.2,206.26,206.22,77.47478419]
[1759246249121,1e-08,206.26,206.25,34.39559401]
[1759246249399,1e-08,206.26,206.25,71.89559401]
[1759246249608,1e-08,206.26,206.25,72.60559401]
[1759246250211,1e-08,206.26,206.25,77.45407885]
[1759246251107,1e-08,206.26,206.25,97.45407885]
[1759246251309,0.2,206.34,206.3,13.59559401]
[1759246251490,0.2,206.34,206.33,34.39559401]
[1759246251690,0.2,206.34,206.33,71.89559401]
[1759246252210,0.2,206.34,206.33,77.45219896]
[1759246252784,0.2,206.34,206.33,76.74219896]
[1759246253301,0.2,206.34,206.33,77.43219896]
[1759246253918,0.2,206.34,206.33,76.74219896]
[1759246254217,0.2,206.34,206.33,76.72219896]
[1759246254418,0.2,206.34,206.33,39.24219896]
[1759246254619,0.2,206.34,206.33,76.72219896]
[1759246254804,0.2,206.34,206.33,13.59559401]
[1759246255005,10.24401928,206.34,206.24,13.59559401]
[1759246255227,4.48764922,206.32,206.25,37.48]
[1759246255531,4.48764922,206.32,206.28,20.8]
[1759246255704,0.71,206.31,206.3,13.59559401]
[1759246255906,0.71,206.31,206.3,51.07559401]
[1759246257141,0.71,206.31,206.23,0.69]
[1759246257142,5.55707479,206.31,206.23,4.84895505]
[1759246257357,5.19764922,206.3,206.24,13.59559401]
[1759246257512,4.84707479,206.31,206.23,4.84895505]
[1759246257513,4.48764922,206.28,206.26,13.59559401]
[1759246257716,4.48764922,206.28,206.23,25.64895505]
[1759246257717,0.71,206.28,206.27,51.07559401]
[1759246258037,4.48764922,206.29,206.27,51.07559401]
[1759246258219,5.19764922,206.29,206.27,51.07559401]
[1759246258417,4.48764922,206.29,206.27,51.07559401]
[1759246258615,0.71,206.28,206.27,51.07559401]
[1759246258812,4.48764922,206.29,206.27,51.07559401]
[1759246259015,0.71,206.31,206.28,13.59559401]
[1759246259332,5.19764922,206.3,206.29,37.46]
[1759246259530,4.48764922,206.3,206.29,37.46]
[1759246259731,5.04637122,206.34,206.29,37.46]
[1759246259732,0.71,206.32,206.29,37.46]
[1759246259921,5.19764922,206.31,206.29,37.46]
[1759246260320,0.2,206.34,206.3,13.59559401]
[1759246260633,0.2,206.34,206.31,37.46]
[1759246260634,0.71,206.33,206.31,37.46]
[1759246260813,0.71,206.33,206.3,18.4428731]
[1759246261014,0.2,206.34,206.32,13.59559401]
[1759246261226,0.2,206.34,206.33,37.46]
[1759246261826,0.2,206.34,206.33,51.05559401]
[1759246262344,0.2,206.34,206.33,56.59219896]
[1759246263249,0.2,206.34,206.33,19.13219896]
[1759246263437,0.2,206.34,206.33,56.59219896]
[1759246264158,0.2,206.34,206.33,13.59559401]
[1759246264460,0.2,206.34,206.33,37.46]
[1759246264461,5.75637006,206.34,206.33,37.46]
[1759246264624,10.24401928,206.34,206.29,13.59559401]
[1759246264824,10.24401928,206.34,206.27,4.84799016]
[1759246264825,0.71,206.33,206.3,37.46]
[1759246265246,0.2,206.34,206.31,13.59559401]
[1759246265458,0.2,206.34,206.33,13.59559401]
[1759246265836,0.2,206.34,206.33,14.28559401]
[1759246266195,1e-08,206.34,206.33,14.7702545]
[1759246266460,1e-08,206.38,206.37,13.59559401]
[1759246266658,1e-08,206.38,206.37,51.03559401]
[1759246266860,1e-08,206.38,206.37,51.72559401]
[1759246267067,1e-08,206.41,206.4,34.39559401]
[1759246267232,0.2,206.54,206.4,34.39559401]
[1759246267233,0.2,206.54,206.4,71.83559401]
[1759246267434,4.48764922,206.5,206.45,13.59559401]
[1759246267658,0.71,206.49,206.47,13.59559401]
[1759246267855,0.71,206.51,206.49,13.59559401]
[1759246268039,0.91,206.54,206.5,37.44]